Cogmind - Beta 13 @@@ ROGUE MODE // 2024.06.16 @ 02:49:57 // Winter2019/RPGLIKE Player: admiral_len Result: Destroyed by Z-Imprinter with Zionite Laser-M Performance ------------- Evolutions (1) 500 Regions Visited (5) 1000 Robots Destroyed (57) 285 Value Destroyed (1449) 1449 Prototype IDs (4) 80 Alien Tech Used (0) 0 Bonus (737) 737 TOTAL SCORE: 4051 Bonus ------- High Alert Combat Kills 148 Follower Combat Kills 7 Met Imprinter 300 Was Imprinted 300 Friendly Fire -18 Cogmind --------- Core Integrity 0/1000 Matter 295/300 Energy 325/340 System Corruption 0% Temperature Hot (297) Movement Treading (160) Location -7/Deep Caves Parts ------- > --- POWER (2) -------- Reinforced Deuterium Engine Micro Nuclear Core > --- PROPULSION (2) --- Improved Treads Improved Treads > --- UTILITY (4) ------ Cooling System > --- WEAPON (4) ------- Riot Gun Beamcaster Heavy Beamcaster Enhanced Flamer > --- INVENTORY (0) ---- (None) Peak State ------------ > --- POWER ------------ Reinforced Deuterium Engine Micro Nuclear Core > --- PROPULSION ------- Improved Treads Improved Treads > --- UTILITY ---------- Cooling System Medium Armor Plating > --- WEAPON ----------- Riot Gun Beamcaster Heavy Beamcaster Enhanced Flamer > --- INVENTORY -------- (None) [Rating: 33] Favorites ----------- Power Nuclear Core Engine Ion Engine Power Core Nuclear Core Propulsion Improved Treads Treads Improved Treads Wheel Wheel Utility Medium Armor Plating Device Cooling System Protection Medium Armor Plating Weapon Spread Laser Energy Gun Spread Laser Special Weapon Enhanced Flamer Build | -11 -10 -9 -9 -7 -7 ------- Run | Yrd Mat Mat Min Zio Dee Slots Evolved 8 | 3 2 1 1 1 . Power 1 | . 1 . . . . Propulsion 1 | 1 . . . . . Utility 3 | 1 . . 1 1 . Weapon 3 | 1 1 1 . . . Parts Attached 41 | 5 7 23 2 3 1 Power 11 | 1 2 6 2 . . Engine 6 | 1 2 2 1 . . Core 5 | . . 4 1 . . Reactor . | . . . . . . Propulsion 9 | 2 3 4 . . . Treads 4 | . . 4 . . . Leg . | . . . . . . Wheel 5 | 2 3 . . . . Hover . | . . . . . . Flight . | . . . . . . Utility 5 | . 1 4 . . . Device 3 | . 1 2 . . . Storage . | . . . . . . Processor . | . . . . . . Hackware . | . . . . . . Protection 2 | . . 2 . . . Artifact . | . . . . . . Weapon 16 | 2 1 9 . 3 1 Energy Gun 15 | 2 1 9 . 2 1 Energy Cannon . | . . . . . . Ballistic Gun . | . . . . . . Ballistic Cannon . | . . . . . . Launcher . | . . . . . . Special Weapon 1 | . . . . 1 . Impact Weapon . | . . . . . . Slashing Weapon . | . . . . . . Piercing Weapon . | . . . . . . Special Melee Weapon . | . . . . . . Unidentified Prototypes 2 | . . 2 . . . Parts Lost 1 | . . . . . 1 Power . | . . . . . . Propulsion . | . . . . . . Utility 1 | . . . . . 1 Weapon . | . . . . . . Highest Loss Streak 1 | . . . . . 1 To Critical Strikes . | . . . . . . Average Slot Usage (%) 90 | . 78 98 90 85 82 Engine 6 | . 15 3 4 8 8 Core 11 | . . 17 13 8 8 Treads 12 | . . 14 18 16 16 Wheel 7 | . 26 6 . . . Device 9 | . 6 10 9 8 8 Protection 7 | . . 9 9 8 7 Energy Gun 33 | . 28 36 36 29 25 Special Weapon 1 | . . . . 4 8 Naked Turns . | . . . . . . Heaviest Build 45 | 9 17 35 43 44 45 Greatest Support 46 | 20 32 46 46 46 46 Greatest Overweight (x) 1 | 1 1 1 . . . Average Overweight (x) . | . . . . . . Largest Inventory Capacity . | . . . . . . Average Capacity . | . . . . . . Most Carried . | . . . . . . Average Carried . | . . . . . . Final Capacity . | . . . . . . Final Carried . | . . . . . . Class Distribution -------------------- 61% | Tank 18% | Gunner 15% | Mutant Dominant Class ---------------- Mutant | -10/Materials Tank | -9/Materials Tank | -9/Mines Tank | -7/Zion Tank | -7/Deep Caves Resources | -11 -10 -9 -9 -7 -7 ----------- Run | Yrd Mat Mat Min Zio Dee Matter Collected 601 | 250 40 261 20 . 30 Remotely . | . . . . . . Salvage Created 1718 | . 505 1046 50 . 117 Parts 108 | . 31 60 17 . . Haulers Intercepted . | . . . . . . Recyclers Shooed 1 | . . 1 . . . Parts Field Recycled . | . . . . . . Retrieved Matter . | . . . . . . Parts Self-Destructed 4 | . . . . 4 . Prevented . | . . . . . . Kills | -11 -10 -9 -9 -7 -7 ------- Run | Yrd Mat Mat Min Zio Dee Combat Hostiles Destroyed 50 | . 15 26 8 . 1 Guns 48 | . 14 25 8 . 1 AOE 1 | . 1 . . . . Classes Destroyed 10 | . 5 3 1 . 1 Worker 2 | . 1 1 . . . Tunneler 1 | . . . 1 . . Recycler 1 | . . 1 . . . Mechanic 1 | . . 1 . . . Operator 1 | . 1 . . . . Watcher 2 | . 1 1 . . . Swarmer 21 | . 6 7 8 . . Grunt 19 | . 9 10 . . . Sentry 9 | . . 9 . . . Assembled 1 | . . . . . 1 Best Kill Streak 6 | . 4 6 4 . 1 Combat Bots Only 6 | . 4 6 3 . 1 Max Kills in Single Turn 2 | . 2 2 2 . 1 Gunslinging 1 | . . 1 1 . . Exploded 1 | . 1 . . . . Melee . | . . . . . . Uniques/NPCs Destroyed . | . . . . . . Combat | -11 -10 -9 -9 -7 -7 -------- Run | Yrd Mat Mat Min Zio Dee Hostile Shots Fired 207 | . 69 77 8 . 53 Missed 60 | . 15 24 4 . 17 Damage Taken 2624 | . 624 645 35 . 1320 Core 1939 | . 500 461 28 . 950 Absorbed by Shields . | . . . . . . Redirected to Core 1610 | . 389 360 22 . 839 Ignored by Resistances 187 | . . 19 5 . 163 Regen/Repaired (Parts) 75 | . . . . 75 . Core Remaining (%) 80 | 100 60 . . . . Volleys Fired 92 | . 31 47 6 . 8 Largest 4 | . 3 4 4 . 4 Hottest 286 | . 150 240 240 . 286 Shots Fired 273 | . 65 153 24 . 31 Gun 266 | . 65 153 24 . 24 Cannon . | . . . . . . Launcher . | . . . . . . Special 7 | . . . . . 7 Kinetic . | . . . . . . Thermal 241 | . 65 138 18 . 20 Explosive . | . . . . . . Electromagnetic 32 | . . 15 6 . 11 Robot Hit Streak 27 | . 22 27 5 . 7 Robot Miss Streak 9 | . 2 9 5 . 3 Penetration Max . | . . . . . . Secondary Targets 8 | . 1 4 3 . . Max Gunslinging Chain 1 | . 1 1 1 . . Shots Hit Robots 191 | . 50 104 18 . 19 Core Hits 144 | . 34 78 24 . 8 Critical Kills . | . . . . . . Critical Parts Destroyed . | . . . . . . Critical Strikes 15 | . 5 9 . . 1 Burn 15 | . 5 9 . . 1 Melee Attacks . | . . . . . . Impact . | . . . . . . Slashing . | . . . . . . Piercing . | . . . . . . Sneak Attacks . | . . . . . . Combat Hostiles . | . . . . . . Follow-up Attacks . | . . . . . . Damage Inflicted 2914 | . 724 1647 216 . 327 Guns 2517 | . 618 1454 200 . 245 Cannons . | . . . . . . Explosions 216 | . 90 101 . . 25 Melee . | . . . . . . Ramming 124 | . 16 92 16 . . Kinetic . | . . . . . . Thermal 2421 | . 652 1364 150 . 255 Explosive . | . . . . . . Electromagnetic 369 | . 56 191 50 . 72 Impact . | . . . . . . Slashing . | . . . . . . Piercing . | . . . . . . Highest Corruption 3 | . 1 3 3 3 . Average Corruption 1 | . 1 1 3 3 . Corruption Purged . | . . . . . . Corruption Blocked . | . . . . . . Effects 28 | . 4 11 8 5 . Message Errors 11 | . 2 1 5 3 . Matter Fused 6 | . 1 4 1 . . Heat Flow Errors 2 | . . 2 . . . Energy Discharges 2 | . . . 1 1 . Data Loss (minor) 3 | . . 2 . 1 . Data Loss (major) 1 | . 1 . . . . Misfires 1 | . . 1 . . . Alerts 2 | . . 1 1 . . Overload Shots . | . . . . . . Overflow Damage . | . . . . . . Projectiles . | . . . . . . Explosions . | . . . . . . Melee . | . . . . . . Knockbacks . | . . . . . . Impact . | . . . . . . Kinetic . | . . . . . . Secondary . | . . . . . . Self-Inflicted Damage 127 | . 66 61 . . . Shots 4 | . 3 1 . . . Rammed 19 | . 3 14 2 . . Targets Rammed 20 | . 3 15 2 . . Kicked . | . . . . . . Crushed 1 | . . 1 . . . Highest Temperature 405 | . 405 225 120 . 288 Average Temperature 79 | . 107 41 44 . 110 Received Heat Transfer 759 | . 243 228 . . 288 Effects 1 | . 1 . . . . Energy Bleed 1 | . 1 . . . . Siege Activations . | . . . . . . Robots Corrupted . | . . . . . . Combat Hostiles . | . . . . . . Parts Fried . | . . . . . . Impact Corruptions . | . . . . . . Robots Melted 1 | . . 1 . . . Combat Hostiles 1 | . . 1 . . . Parts Melted 12 | . 6 6 . . . Heat Transferred 6530 | . 2270 3755 205 . 300 Parts Sabotaged . | . . . . . . Parts Stolen . | . . . . . . Parts Stripped . | . . . . . . Power Chain Reactions 3 | . 1 1 . . 1 Alert | -11 -10 -9 -9 -7 -7 ------- Run | Yrd Mat Mat Min Zio Dee Peak Influence 674 | . 421 674 361 . . Initial 216 | . . 114 216 . . Average 414 | . 226 529 302 . . Maximum Alert Level 2 | . 2 2 1 . . Low Security (%) 13 | 100 34 6 3 . . Level 1 34 | . 56 8 96 . . Level 2 52 | . 9 85 . . . Level 3 . | . . . . . . Level 4 . | . . . . . . Level 5 . | . . . . . . High Security . | . . . . . . Max Security . | . . . . . . Squads Dispatched 9 | . 4 4 1 . . Investigation 4 | . 2 1 1 . . Extermination . | . . . . . . Reinforcement 4 | . 2 2 . . . Assault 1 | . . 1 . . . Garrison . | . . . . . . Intercept . | . . . . . . Searches Triggered . | . . . . . . Construction Impeded . | . . . . . . Haulers Reinforced . | . . . . . . Active Scanning Responses . | . . . . . . Cargo Convoy Interrupts . | . . . . . . Stealth | -11 -10 -9 -9 -7 -7 --------- Run | Yrd Mat Mat Min Zio Dee Distress Signals 1 | . 1 . . . . Communications Jammed . | . . . . . . Distress Signals . | . . . . . . Times Spotted 80 | . 23 43 8 . 6 Peak Tracking Total 7 | . 7 7 3 . 3 Tactical Retreats 3 | . 3 . . . . Traps | -11 -10 -9 -9 -7 -7 ------- Run | Yrd Mat Mat Min Zio Dee Traps Triggered 2 | . 1 1 . . . Indirectly . | . . . . . . Trap Hack Attempts . | . . . . . . Triggered . | . . . . . . Disarmed . | . . . . . . Reprogrammed . | . . . . . . Reused . | . . . . . . Traps Extracted . | . . . . . . Installed . | . . . . . . Triggered . | . . . . . . Machines | -11 -10 -9 -9 -7 -7 ---------- Run | Yrd Mat Mat Min Zio Dee Machines Disabled 7 | . 3 3 . . 1 Max in Single Turn 3 | . 2 3 . . 1 Machines Repaired . | . . . . . . Machines Dismantled . | . . . . . . Machines Sabotaged . | . . . . . . Overloaded Fab Kills . | . . . . . . Hacking | -11 -10 -9 -9 -7 -7 --------- Run | Yrd Mat Mat Min Zio Dee Machines Accessed 14 | . 7 6 1 . . Terminals 10 | . 6 4 . . . Fabricators . | . . . . . . Repair Stations . | . . . . . . Recycling Units 3 | . 1 2 . . . Scanalyzers . | . . . . . . Garrison Access . | . . . . . . Total Hacks 36 | . 24 11 1 . . Successful 18 | . 11 6 1 . . Failed 18 | . 13 5 . . . Catastrophic . | . . . . . . Database Lockouts . | . . . . . . Manual 4 | . . . . 4 . Terminals 30 | . 23 7 . . . Fabricators . | . . . . . . Repair Stations . | . . . . . . Recycling Units 5 | . 1 4 . . . Scanalyzers . | . . . . . . Garrison Access . | . . . . . . Terminal Hacks 14 | . 10 3 1 . . Prototype ID Bank 1 | . 1 . . . . Open Door 1 | . . . 1 . . Branch Access Points 1 | . . 1 . . . Locate Traps 3 | . 2 1 . . . Transport Status 1 | . 1 . . . . Registered Components 1 | . 1 . . . . Zone Layout 6 | . 5 1 . . . Fabricator Hacks . | . . . . . . Repair Station Hacks . | . . . . . . Recycling Unit Hacks 4 | . 1 3 . . . Report Inventory 4 | . 1 3 . . . Scanalyzer . | . . . . . . Garrison Access Hacks . | . . . . . . Unauthorized Hacks . | . . . . . . Terminals . | . . . . . . Fabricators . | . . . . . . Repair Stations . | . . . . . . Recycling Units . | . . . . . . Scanalyzers . | . . . . . . Garrison Access . | . . . . . . Data Cores Recovered . | . . . . . . Used . | . . . . . . Hacking Detections 5 | . 2 3 . . . Full Trace Events 2 | . 1 1 . . . Feedback Events . | . . . . . . Feedback Blocked . | . . . . . . Robot Schematics Acquired 3 | . . . . 3 . Robots Built . | . . . . . . Authchips . | . . . . . . Time . | . . . . . . Total Robot Build Rating . | . . . . . . Part Schematics Acquired 14 | . . . . 14 . Parts Built . | . . . . . . Authchips . | . . . . . . Time . | . . . . . . Total Part Build Rating . | . . . . . . Parts Repaired . | . . . . . . Time . | . . . . . . Parts Recycled . | . . . . . . Recycled Matter . | . . . . . . Retrieved Matter . | . . . . . . Retrieved Components . | . . . . . . Parts Scanalyzed . | . . . . . . Part Schematics Acquired . | . . . . . . Parts Damaged . | . . . . . . Bothacking | -11 -10 -9 -9 -7 -7 ------------ Run | Yrd Mat Mat Min Zio Dee Used RIF Installer . | . . . . . . Robots Hacked . | . . . . . . Non-combat . | . . . . . . Combat . | . . . . . . Robot Hacks Applied . | . . . . . . Relay Couplers Released . | . . . . . . Fabnet Peak Effective % . | . . . . . . Robots Rewired . | . . . . . . Allies Hacked . | . . . . . . Hacks Repelled . | . . . . . . Allies | -11 -10 -9 -9 -7 -7 -------- Run | Yrd Mat Mat Min Zio Dee Total Allies 10 | . . . 1 9 . Largest Group 10 | . . . 1 10 4 Highest-Rated Group 294 | . . . 31 294 99 Highest-Rated Ally 40 | . . . 31 40 40 Total Orders . | . . . . . . Ally Attacks 36 | . . . 3 . 33 Total Damage 350 | . . . 44 . 306 Kills 7 | . . . 1 . 6 Allies Corrupted . | . . . . . . Allies Melted . | . . . . . . Intel | -11 -10 -9 -9 -7 -7 ------- Run | Yrd Mat Mat Min Zio Dee Robot Analysis Total . | . . . . . . Derelict Logs Recovered 1 | . . . 1 . . Drone Launches . | . . . . . . Drone Recoveries . | . . . . . . Exploration | -11 -10 -9 -9 -7 -7 ------------- Run | Yrd Mat Mat Min Zio Dee Turns Passed 4538 | 32 842 2042 574 768 280 Spaces Moved 2902 | 34 725 1181 335 477 150 Core 9 | 9 . . . . . Treads 1791 | . . 829 335 477 150 Legs . | . . . . . . Wheels 1102 | 25 725 352 . . . Hover . | . . . . . . Flight . | . . . . . . Fastest Speed 50 | 50 80 100 160 160 160 Average Speed 132 | 73 81 142 160 160 160 Slowest Speed 240 | 100 100 240 160 160 160 Overloaded Moves . | . . . . . . Propulsion Burnouts . | . . . . . . Robots Hopped . | . . . . . . Cave-ins Triggered . | . . . . . . Exploration Rate (%) 58 | 3 94 81 84 62 29 Regions Visited 5 Branch Regions 3 Pre-discovered Areas 1 | . . . . 1 . Known Exits Taken 1 | . . 1 . . . Unknown Exits Taken 4 | 1 1 . 1 1 . Scrap Searched 2 | . . . 1 1 . Spaces Dug . | . . . . . . Terrain Destroyed 76 | . 19 52 . . 5 Melee . | . . . . . . Projectile . | . . . . . . AOE 76 | . 19 52 . . 5 Terrain Rammed . | . . . . . . Walls Destroyed . | . . . . . . Machines Disabled . | . . . . . . Actions | -11 -10 -9 -9 -7 -7 --------- Run | Yrd Mat Mat Min Zio Dee Total 3375 | 38 910 1422 357 482 166 Wait 243 | . 129 105 5 . 4 Move 2897 | 33 724 1180 334 476 150 Hop . | . . . . . . Pick Up . | . . . . . . Fast Attach 35 | 5 4 20 2 3 1 Attach . | . . . . . . Detach . | . . . . . . Swap 6 | . 3 3 . . . Drop 31 | . 4 21 2 3 1 Fire 92 | . 31 47 6 . 8 Melee . | . . . . . . Ram 11 | . 3 8 . . . Kick . | . . . . . . Crush 9 | . . 7 2 . . Escape Stasis . | . . . . . . Rewire . | . . . . . . Trap . | . . . . . . Miscellaneous 51 | . 12 31 6 . 2 Route ------- -11/Scrapyard -10/Materials (discovered 4 exits: *Mat x3 / [*Min]) -9/Materials (discovered 2 exits: [*Mat] / *Min) -9/Mines (discovered 3 exits: [*Mat] / [*Exi] / *Zio) -7/Zion (discovered 2 exits: [*Dee] / [*Pro]) -7/Deep Caves History --------- Turn | Location | Event 1 | -11/Scrapyard | Upgraded with Propulsion slot (x1) 1 | -11/Scrapyard | Upgraded with Utility slot (x1) 1 | -11/Scrapyard | Upgraded with Weapon slot (x1) 8 | -11/Scrapyard | Discovered new exit (range 16) 33 | -11/Scrapyard | Entered Materials 97 | -10/Materials | Discovered new exit (range 10) 300 | -10/Materials | Build established: Mutant 368 | -10/Materials | Discovered new exit (range 9) 424 | -10/Materials | Core integrity fell below 50% 448 | -10/Materials | Discovered new exit (range 18) 496 | -10/Materials | Discovered new exit (range 9) 590 | -10/Materials | Reached level 2 690 | -10/Materials | Upgraded with Power slot (x1) 690 | -10/Materials | Upgraded with Weapon slot (x1) 875 | -10/Materials | Entered another Materials area 877 | -9/Materials | Reached level 3 1002 | -9/Materials | Core integrity fell below 50% 1025 | -9/Materials | Build established: Gunner 1076 | -9/Materials | Reached level 4 1321 | -9/Materials | Identified exit to Mines 1656 | -9/Materials | Reached level 5 1662 | -9/Materials | Upgraded with Weapon slot (x1) 1952 | -9/Materials | Build established: Tank 2463 | -9/Materials | Discovered new exit (range 14) 2875 | -9/Materials | First assault squad dispatched 2917 | -9/Materials | Entered Mines 2917 | -9/Mines | Reached level 6 2927 | -9/Mines | Upgraded with Utility slot (x1) 2969 | -9/Mines | Learned Materials garrison access intel 3073 | -9/Mines | Escorted by a lone wolf Derelict 3098 | -9/Mines | Deemed a non-threat by the Exiles lab entrance 3098 | -9/Mines | Discovered new exit (range 5) 3168 | -9/Mines | Met a Derelict shopkeep closing up shop 3244 | -9/Mines | A Derelict revealed a hidden shortcut to a safe place 3369 | -9/Mines | Discovered new exit (range 4) 3491 | -9/Mines | Entered Zion 3491 | -7/Zion | Accompanied by 1 ally 3493 | -7/Zion | Reached level 7 3579 | -7/Zion | Visited the Megawrench Repair Shop 3579 | -7/Zion | Megawrench repaired 9 parts 3611 | -7/Zion | Discovered new exit (range 9) 3647 | -7/Zion | Acquired unknown access codes intercepted by a Zionite 3667 | -7/Zion | Gained Derelict followers 3712 | -7/Zion | System corruption cleaned by Quarantine Array 3731 | -7/Zion | Upgraded with Utility slot (x1) 4025 | -7/Zion | Imprinted 4027 | -7/Zion | Declared Zion's savior 4230 | -7/Zion | Opened final containment barrier to the Deep Caves 4254 | -7/Zion | Discovered new exit (range 4) 4254 | -7/Zion | Saw the warning signs outside the Deep Caves entrance 4259 | -7/Zion | Entered Deep Caves 4259 | -7/Deep Caves | Accompanied by 4 allies 4261 | -7/Deep Caves | Reached level 8 4510 | -7/Deep Caves | Attacked by Z-Imprinter 4523 | -7/Deep Caves | Z-Facility disabled 4533 | -7/Deep Caves | Core integrity fell below 20% 4539 | -7/Deep Caves | Destroyed by Z-Imprinter with Zionite Laser-M Last Messages --------------- WY-UZ8(l) destroyed. as-14902 destroyed. Dropped EM Shotgun. Acquired Beamcaster. AT-H5J(o) suffers critical hit (Burn). AT-H5J(o) destroyed. NEW_ZION: Z-Facility proximity alert. SY-SVD(o) destroyed. YI-XTU(g): "Mission, incomplete...*fzzt*" YI-XTU(g) destroyed. 7M-O7X(s) destroyed. Z-Imprinter: GET AWAY FROM HERE! I've worked too hard for our future just to have you ruin everything! H3-QQ1(o) is busy at the terminal. Z-Power explodes. Z-Facility disabled. Med. Armor Plating destroyed. H3-QQ1(o) destroyed. 6B-KRJ(o) destroyed. Z-Imprinter suffers critical hit (Burn). Map ----- +----------------------------------------------------+ | ?????????????????????????????????????????????????? | | ?????????????????????????????????????????????????? | | ??????????????????????????#????????######????????? | | ??????????????????????????# ????### ##?????### | | ????????????????????????? ##### #?????#"" | | ????????????????????????? ??????#" | | ???????????????????????? ??????#" | | ???????????????????????? #??????## | | ??????????????????????? #??????#" | | ??????????????????????? ##?????## | | ??????????????????????? ######## | | ????????????????????? | | ?????????????????? | | ???????????????? | | ????????????????" ###### | | ??????????????""" ###????# | | ?????????????" ##??????## | | ???????????"" z #????????# | | ???????????" ##???????? | | ???????????" #???????? | | ???????????" #???????? | | ??????????? #???????? | | ??????????? z ##??????? | | ?????????? I ##???# | | ?????????" #???# | | ?????????" @ #???#### | | ?????????? ##??????# | | ?????????? ##???????# | | ??????????? ##??????## | | ??????????? % ##????## | | ???????????? =% #????# | | ???????????? #????? | | ???????????? ##???????? | | ?????????? #????????? | | ?????????"""" #????????? | | ???????????""" #???????? | | ??????????? #???????? | | ??????????? #??????? | | ?????????? #??????? | | ?????????? #?????? | | ?????????? #?????? | | ?????????? #?????? | | ??????????? ##### #?????? | | ????????????? ###????### #### ???????? | | ??????????????? #?????????######???# ?????????? | | ?????????????????????????????????????????????????? | | ?????????????????????????????????????????????????? | | ?????????????????????????????????????????????????? | | | | | +----------------------------------------------------+ Best States ------------- Heat Dissipation 77 Energy Generation 41 Energy Capacity 400 Matter Stores 300 Matter Capacity 300 Sight Range 16 Terrain Scan Density 10 Armor Coverage 225 Resistance: KI 10 Resistance: TH 10 Resistance: EX 5 Evasion (%) 50 Recoil Reduction 2 Offensive Hacking 15 Item Schematics ----------------- Thermic Laser | -7/Zion | Archive Imp. Titanium Leg | -7/Zion | Archive Mak. System Shield | -7/Zion | Archive Lgt. Angular Momentum Engine | -7/Zion | Archive Imp. Transmission Jammer | -7/Zion | Archive Lightning Gun | -7/Zion | Archive Phase Cannon | -7/Zion | Archive Recoil Nullifier | -7/Zion | Archive Hvy. Ion Cannon | -7/Zion | Archive Hvy. Plasma Cannon | -7/Zion | Archive Mak. Spear | -7/Zion | Archive Plasma Flamer | -7/Zion | Archive Imp. EM Pulse Cannon | -7/Zion | Archive Imp. Thermal Generator | -7/Zion | Archive Robot Schematics ------------------ T-07 Excavator | -7/Zion | Archive S-27 Virus | -7/Zion | Archive L-41 Fighter | -7/Zion | Archive Fabricated ------------ Nothing Alien Tech Used ----------------- None Achievements -------------- The One Challenges ------------ None RPGLIKE | -11 -10 -9 -9 -7 -7 --------- Run | Yrd Mat Mat Min Zio Dee Levels Raised 7 | . 1 3 1 1 1 XP Earned 13782 | 3000 2149 5260 1573 800 1000 XP Spent 12930 | 3000 1420 4560 1150 1850 950 Upgrades 36 | 6 4 18 3 3 2 Power Slot 1 | . 1 . . . . Propulsion Slot 1 | 1 . . . . . Utility Slot 3 | 1 . . 1 1 . Weapon Slot 3 | 1 1 1 . . . Core Integrity 8 | . . 8 . . . Heat Dissipation 5 | . 2 3 . . . Energy Generation 3 | . . 3 . . . Ranged Accuracy 4 | 3 . 1 . . . Hack Attack % 3 | . . . 1 1 1 KI Resistance % 2 | . . 1 . 1 . TH Resistance % 2 | . . 1 . . 1 EX Resistance % 1 | . . . 1 . . Protomatter Created 431 | . 111 277 43 . . Integrity Restored 1031 | . 261 614 123 . 33 Core 926 | . 261 509 123 . 33 Parts 105 | . . 105 . . . Protomatter Decayed 83 | . . 31 52 . . Game ------ Seed NeutronArcMatter Manual? 0 Play Time 00:39:11 Cumulative 25.6 hours Start 2024.06.16 @ 02:06:31 End 2024.06.16 @ 02:49:57 Sessions 1 Manual Loads 0 Difficulty Rogue Special Mode Winter2019/RPGLIKE Game No. 43 Rogue 43 Adventurer 0 Explorer 0 Win Type - Total 0 Types 0/0/0/0/0/0/0/0/0 Lore% 10 Gallery% 21 Achievement% 23 Wizard Run 0 Options --------- Layout 0 ASCII 0 Keyboard 0 Movement Mouse Keybinds 0 Fullscreen 1 Font 18/SmallcapsGlow Map View 38x25 Zoom Use 100% Tactical HUD 0 Map Filters NONE Filters NONE Steam 1 RUN: c5273876-31e3-4651-ad0b-0e0e00dc695c